fUSD/lending_fUSD_20250916
["ID","MTS","AMOUNT","RATE_DAILY","PERIOD"]
[385829608,1758057119684,-435.33,0.0003589,6]
[385829609,1758057119694,-1275.84,0.0003589,6]
[385829610,1758057119703,-215.76459348,0.0003589,6]
[385829611,1758057119713,-1307.51,0.0003589,6]
[385829612,1758057119725,-585.24,0.0003589,6]
[385829613,1758057119735,-2094.1,0.0003589,6]
[385829614,1758057119745,-432.42,0.0003589,6]
[385829615,1758057119756,-807.22,0.0003589,6]
[385829616,1758057119766,-426.07,0.0003589,6]
[385829617,1758057119775,-450.81,0.0003589,6]
[385829618,1758057119785,-1320.54,0.0003589,6]
[385829619,1758057119794,-2034.04,0.0003589,6]
[385829620,1758057119803,-400.0,0.0003589,6]
[385829621,1758057119812,-691.17,0.0003589,6]
[385829622,1758057119822,-632.25,0.0003589,6]
[385829623,1758057119832,-712.91,0.0003589,6]
[385829624,1758057119842,-531.95,0.0003589,6]
[385829625,1758057119851,-193.14917931,0.0003589,6]
[385829626,1758057119861,-400.0,0.0003589,6]
[385829627,1758057119872,-2182.91,0.0003589,6]
[385829628,1758057119882,-668.63,0.0003589,6]
[385829629,1758057119891,-682.52,0.0003589,6]
[385829630,1758057119901,-577.47,0.0003589,6]
[385829631,1758057119911,-296.14400084,0.0003589,6]
[385829632,1758057119921,-613.19,0.0003589,6]
[385829633,1758057119930,-409.76,0.0003589,6]
[385829634,1758057119940,-1025.88,0.0003589,6]
[385829635,1758057119950,-1251.89,0.0003589,6]
[385829636,1758057119960,-924.97,0.0003589,6]
[385829637,1758057119969,-605.66,0.0003589,6]
[385829638,1758057119979,-593.74,0.0003589,6]
[385829639,1758057119989,-516.31,0.0003589,6]
[385829640,1758057119999,-365.03142247,0.0003589,6]
[385829641,1758057120009,-297.71526985,0.0003589,6]
[385829642,1758057120018,-195.83656416,0.0003589,6]
[385829643,1758057120029,-1014.87,0.0003589,6]
[385829644,1758057120038,-524.6,0.0003589,6]
[385829645,1758057120047,-493.11,0.0003589,6]
[385829646,1758057120056,-412.98,0.0003589,6]
[385829647,1758057120066,-588.1,0.0003589,6]
[385829648,1758057120075,-529.64,0.0003589,6]
[385829649,1758057120085,-418.11295559,0.0003589,6]
[385829650,1758057120094,-574.6,0.0003589,6]
[385829651,1758057120103,-983.68,0.0003589,6]
[385829652,1758057120113,-436.67,0.0003589,6]
[385829653,1758057120123,-410.54,0.0003589,6]
[385829654,1758057120133,-409.35,0.0003589,6]
[385829655,1758057120142,-875.58,0.0003589,6]
[385829656,1758057120151,-625.93,0.0003589,6]
[385829657,1758057120160,-400.0,0.0003589,6]
[385829658,1758057120169,-457.79,0.0003589,6]
[385829659,1758057120179,-791.37,0.0003589,6]
[385829660,1758057120188,-745.45,0.0003589,6]
[385829661,1758057120198,-609.54,0.0003589,6]
[385829662,1758057120207,-510.33,0.0003589,6]
[385829663,1758057120217,-556.43,0.0003589,6]
[385829664,1758057120226,-438.34,0.0003589,6]
[385829665,1758057120235,-636.26,0.0003589,6]
[385829666,1758057120245,-1260.15,0.0003589,6]
[385829667,1758057120254,-587.63,0.0003589,6]
[385829668,1758057120263,-479.5,0.0003589,6]
[385829669,1758057120273,-461.54,0.0003589,6]
[385829670,1758057120283,-506.39,0.0003589,6]
[385829671,1758057120292,-462.29,0.0003589,6]
[385829672,1758057120302,-1289.38,0.0003589,6]
[385829673,1758057120311,-462.3,0.0003589,6]
[385829674,1758057120321,-400.0,0.0003589,6]
[385829675,1758057120330,-690.9,0.0003589,6]
[385829676,1758057120339,-449.23,0.0003589,5]
[385829677,1758057120348,-1146.39,0.0003589,6]
[385829678,1758057120358,-497.6,0.0003589,6]
[385829679,1758057120367,-843.08,0.0003589,6]
[385829680,1758057120377,-400.0,0.0003589,6]
[385829681,1758057120386,-2611.36,0.0003589,6]
[385829682,1758057120396,-836.09,0.0003589,6]
[385829683,1758057120405,-400.0,0.0003589,6]
[385829684,1758057120414,-467.85,0.0003589,6]
[385829685,1758057120423,-553.62,0.0003589,6]
[385829686,1758057120432,-298.02193763,0.0003589,6]
[385829687,1758057120441,-400.0,0.0003589,6]
[385829688,1758057120450,-430.5,0.0003589,6]
[385829689,1758057120459,-1289.35,0.0003589,6]
[385829690,1758057120468,-441.74,0.0003589,6]
[385829691,1758057120477,-479.52,0.0003589,6]
[385829692,1758057120486,-2216.47,0.0003589,6]
[385829693,1758057120495,-507.91,0.0003589,6]
[385829694,1758057120505,-547.58,0.0003589,6]
[385829695,1758057120514,-1349.47,0.000359,2]
[385829696,1758057120523,-30361.25,0.000359,2]
[385829697,1758057120533,-1679.52,0.000359,7]
[385829698,1758057120542,-600.0,0.000359,13]
[385829699,1758057120552,-780.46257145,0.000359,15]
[385829700,1758057120562,-2025.95007816,0.00035927,8]
[385829701,1758057120571,-309.82,0.00035936,60]
[385829702,1758057120580,-1100.0,0.00035946,7]
[385829703,1758057120589,-561.59057932,0.00035965,7]
[385829704,1758057120599,-1100.0,0.0003598,7]
[385829705,1758057120608,-5007.08603,0.00035997,30]
[385829706,1758057120618,-18395.68243263,0.00035999,2]
[385829707,1758057120627,-54286.03287713,0.00035999,2]
[385829708,1758057120636,-3055.38481087,0.00035999,7]
[385829709,1758057120645,-900.0,0.00036,37]
[385829710,1758057120654,-1349.47,0.00036,2]
[385829711,1758057120663,-1349.47,0.00036,2]
[385829712,1758057120673,-1349.47,0.00036,2]
[385829713,1758057120682,-759.13,0.00036,7]
[385829714,1758057120691,-759.13,0.00036,7]
[385829715,1758057120701,-30361.25,0.00036,2]
[385829716,1758057120710,-30361.25,0.00036,2]
[385829717,1758057120719,-759.13,0.00036,7]
[385829718,1758057120728,-30361.25,0.00036,2]
[385829719,1758057120737,-2965.66,0.00036,7]
[385829720,1758057120747,-2965.66,0.00036,7]
[385829721,1758057120756,-2965.66,0.00036,7]
[385829722,1758057120766,-251.01,0.00036,2]
[385829723,1758057120775,-1679.52,0.00036,7]
[385829724,1758057120785,-1679.52,0.00036,7]
[385829725,1758057120794,-1679.52,0.00036,7]
[385829726,1758057120803,-1790025.01969474,0.00036,7]
[385829727,1758057120812,-10674.2514898,0.00036,2]
[385829728,1758057120822,-155711.6615227,0.00036,7]
[385829729,1758057120831,-849.18008103,0.00036,7]
[385829730,1758057120840,-200.0,0.00036,120]
[385829731,1758057120850,-751.04783701,0.00036,7]
[385829732,1758057120859,-978.99431649,0.00036,4]
[385829733,1758057120868,-204.22703005,0.00036,4]
[385829734,1758057120878,-2584.06308479,0.00036,2]
[385829735,1758057120887,-15059.15,0.00036,30]
[385829736,1758057120897,-9415.93,0.00036,7]
[385829737,1758057120911,-1280.943,0.00036,30]
[385829738,1758057120921,-28867.5,0.00036,7]
[385829739,1758057120930,-543.08,0.00036,2]
[385829740,1758057120940,-150.0,0.00036,2]
[385829741,1758057120951,-307.6,0.00036,2]
[385829742,1758057120960,-150.0,0.00036,2]
[385829743,1758057120970,-1191.66,0.00036,2]
[385829744,1758057120981,-150.0,0.00036,2]
[385829745,1758057120991,-174.89,0.00036,2]
[385829746,1758057121000,-174.89,0.00036,2]
[385829747,1758057121010,-174.89,0.00036,2]
[385829748,1758057121019,-543.08,0.00036,2]
[385829749,1758057121028,-300.0,0.00036,2]
[385829750,1758057121037,-174.07,0.00036,2]
[385829751,1758057121047,-167.02,0.00036,2]
[385829752,1758057121056,-3581.74,0.00036,14]
[385829753,1758057121066,-944.26,0.00036,2]
[385829754,1758057121076,-152.0,0.00036017,5]
[385829755,1758057121086,-150.0,0.00036033,120]
[385829756,1758057121095,-309.82,0.00036036,60]
[385829757,1758057121105,-500.0,0.00036061,30]
[385829758,1758057121115,-150.0,0.00036085,120]
[385829759,1758057121124,-495.13188,0.00036088,30]
[385829760,1758057121134,-1349.47,0.000361,2]
[385829761,1758057121143,-30361.25,0.000361,2]
[385829762,1758057121153,-700.0,0.00036103,7]
[385829763,1758057121162,-700.0,0.00036117,7]
[385829764,1758057121171,-1054.00008823,0.00036125,5]
[385829765,1758057121181,-309.82,0.00036136,60]
[385829766,1758057121191,-258.93,0.00036137,2]
[385829767,1758057121201,-160.59,0.00036137,2]
[385829768,1758057121211,-1192.33,0.00036137,2]
[385829769,1758057121220,-543.08,0.00036137,2]
[385829770,1758057121230,-1192.33,0.00036137,2]
[385829771,1758057121239,-543.08,0.00036137,2]
[385829772,1758057121248,-543.08,0.00036137,2]
[385829773,1758057121258,-1192.33,0.00036137,2]
[385829774,1758057121268,-569.21,0.00036137,2]
[385829775,1758057121277,-644.0,0.0003615,2]
[385829776,1758057121287,-700.0,0.00036157,7]
[385829777,1758057121297,-405.53,0.00036163,6]
[385829778,1758057121307,-595.63,0.00036163,6]
[385829779,1758057121316,-1028.77,0.00036163,6]
[385829780,1758057121325,-1409.64,0.00036163,6]
[385829781,1758057121334,-400.0,0.00036163,6]
[385829782,1758057121344,-600.72,0.00036163,6]
[385829783,1758057121354,-400.0,0.00036163,6]
[385829784,1758057121362,-400.0,0.00036163,6]
[385829785,1758057121372,-1436.86,0.00036163,6]
[385829786,1758057121381,-506.37,0.00036163,6]
[385829787,1758057121391,-7636.7,0.00036163,6]
[385829788,1758057121401,-1729.73,0.00036163,6]
[385829789,1758057121411,-524.19,0.00036163,6]
[385829790,1758057121421,-505.69,0.00036163,6]
[385829791,1758057121431,-844.72,0.00036163,6]
[385829792,1758057121440,-400.0,0.00036163,6]
[385829793,1758057121450,-546.33,0.00036163,6]
[385829794,1758057121459,-1051.06,0.00036163,6]
[385829795,1758057121468,-1470.36,0.00036163,6]
[385829796,1758057121478,-472.24,0.00036164,6]
[385829797,1758057121487,-595.04,0.00036164,6]
[385829798,1758057121497,-817.46,0.00036164,6]
[385829799,1758057121506,-426.72,0.00036164,6]
[385829800,1758057121516,-317.07221445,0.00036164,6]
[385829801,1758057121525,-237.71683587,0.00036164,6]
[385829802,1758057121535,-466.82,0.00036164,6]
[385829803,1758057121545,-436.46,0.00036164,6]
[385829804,1758057121555,-444.47,0.00036164,6]
[385829805,1758057121565,-464.7227727,0.00036164,6]
[385829806,1758057121575,-538.45,0.00036164,6]
[385829807,1758057121584,-897.93,0.00036164,6]
[385829808,1758057121594,-400.39,0.00036164,6]
[385829809,1758057121604,-477.46,0.00036164,6]
[385829810,1758057121614,-420.75,0.00036164,6]
[385829811,1758057121623,-2152.72,0.00036164,6]
[385829812,1758057121633,-513.76688173,0.00036164,6]
[385829813,1758057121643,-446.8,0.00036164,6]
[385829814,1758057121653,-414.26,0.00036164,6]
[385829815,1758057121663,-633.69,0.00036164,6]
[385829816,1758057121673,-488.35,0.00036164,6]
[385829817,1758057121683,-636.75,0.00036164,6]
[385829818,1758057121693,-605.63,0.00036164,6]
[385829819,1758057121703,-535.77,0.00036164,6]
[385829820,1758057121713,-609.74,0.00036164,6]
[385829821,1758057121722,-713.21,0.00036164,6]
[385829822,1758057121732,-470.05,0.00036164,6]
[385829823,1758057121741,-545.98,0.00036164,6]
[385829824,1758057121751,-435.33,0.00036164,6]
[385829825,1758057121760,-1275.84,0.00036164,6]
[385829826,1758057121770,-1307.51,0.00036164,6]
[385829827,1758057121779,-585.24,0.00036164,6]
[385829828,1758057121789,-2094.1,0.00036164,6]
[385829829,1758057121799,-432.42,0.00036164,6]
[385829830,1758057121809,-807.22,0.00036164,6]
[385829831,1758057121819,-426.07,0.00036164,6]
[385829832,1758057121829,-450.81,0.00036164,6]
[385829833,1758057121839,-1320.54,0.00036164,6]
[385829834,1758057121848,-2034.04,0.00036164,6]
[385829835,1758057121858,-228.0138719,0.00036164,6]
[385829836,1758057121868,-691.17,0.00036164,6]
[385829837,1758057121878,-632.25,0.00036164,6]
[385829838,1758057121889,-712.91,0.00036164,6]
[385829839,1758057121900,-531.95,0.00036164,6]
[385829840,1758057121911,-200.31688479,0.00036164,6]
[385829841,1758057121921,-2182.91,0.00036164,6]
[385829842,1758057121931,-668.63,0.00036164,6]
[385829843,1758057121941,-682.52,0.00036164,6]
[385829844,1758057121951,-577.47,0.00036164,6]
[385829845,1758057121960,-613.19,0.00036164,6]
[385829846,1758057121970,-409.76,0.00036164,6]
[385829847,1758057121981,-1025.88,0.00036164,6]
[385829848,1758057121992,-1251.89,0.00036164,6]
[385829849,1758057122002,-924.97,0.00036164,6]
[385829850,1758057122012,-605.66,0.00036164,6]
[385829851,1758057122021,-593.74,0.00036164,6]
[385829852,1758057122031,-516.31,0.00036164,6]
[385829853,1758057122041,-1014.87,0.00036164,6]
[385829854,1758057122051,-524.6,0.00036164,6]
[385829855,1758057122061,-493.11,0.00036164,6]
[385829856,1758057122070,-412.98,0.00036164,6]
[385829857,1758057122080,-588.1,0.00036164,6]
[385829858,1758057122090,-529.64,0.00036164,6]
[385829859,1758057122100,-574.6,0.00036164,6]
[385829860,1758057122110,-983.68,0.00036164,6]
[385829861,1758057122121,-436.67,0.00036164,6]
[385829862,1758057122131,-410.54,0.00036164,6]
[385829863,1758057122141,-409.35,0.00036164,6]
[385829864,1758057122150,-875.58,0.00036164,6]
[385829865,1758057122160,-625.93,0.00036164,6]
[385829866,1758057122169,-185.52419197,0.00036164,6]
[385829867,1758057122179,-457.79,0.00036164,6]
[385829868,1758057122189,-791.37,0.00036164,6]
[385829869,1758057122199,-745.45,0.00036164,6]
[385829870,1758057122209,-609.54,0.00036164,6]
[385829871,1758057122218,-510.33,0.00036164,6]
[385829872,1758057122228,-556.43,0.00036164,6]
[385829873,1758057122238,-636.26,0.00036164,6]
[385829874,1758057122248,-438.34,0.00036164,6]
[385829875,1758057122258,-1260.15,0.00036164,6]
[385829876,1758057122269,-587.63,0.00036164,6]
[385829877,1758057122280,-479.5,0.00036164,6]
[385829878,1758057122290,-461.54,0.00036164,6]
[385829879,1758057122299,-506.39,0.00036164,6]
[385829880,1758057122311,-462.29,0.00036164,6]
[385829881,1758057122322,-1289.38,0.00036164,6]
[385829882,1758057122332,-302.48583995,0.00036164,6]
[385829883,1758057122342,-690.9,0.00036164,6]
[385829884,1758057122353,-449.23,0.00036164,5]
[385829885,1758057122363,-1146.39,0.00036164,6]
[385829886,1758057122373,-497.6,0.00036164,6]
[385829887,1758057122384,-843.08,0.00036164,6]
[385829888,1758057122395,-400.0,0.00036164,6]
[385829889,1758057122406,-2611.36,0.00036164,6]
[385829890,1758057122417,-836.09,0.00036164,6]
[385829891,1758057122427,-494.74905707,0.00036164,6]
[385829892,1758057122439,-467.85,0.00036164,6]
[385829893,1758057122449,-553.62,0.00036164,6]
[385829894,1758057122460,-189.67913738,0.00036164,6]
[385829895,1758057122470,-430.5,0.00036164,6]
[385829896,1758057122481,-1289.35,0.00036164,6]
[385829897,1758057122492,-441.74,0.00036164,6]
[385829898,1758057122503,-479.52,0.00036164,6]
[385829899,1758057122514,-2216.47,0.00036164,6]
[385829900,1758057122525,-507.91,0.00036164,6]
[385829901,1758057122535,-547.58,0.00036164,6]
[385829902,1758057122546,-198.69043206,0.00036181,2]
[385829903,1758057122555,-509.58932753,0.00036196,7]
[385829904,1758057122565,-759.13,0.000362,7]
[385829905,1758057122575,-2965.66,0.000362,7]
[385829906,1758057122585,-1100.0,0.00036202,7]
[385829907,1758057122594,-1100.0,0.00036214,7]
[385829908,1758057122604,-2885.181657,0.00036222,7]
[385829909,1758057122614,-1461.858961,0.00036222,7]
[385829910,1758057122624,-600.0,0.00036231,7]
[385829911,1758057122634,-309.82,0.00036236,60]
[385829912,1758057122644,-1300.0,0.00036252,7]
[385829913,1758057122654,-500.0,0.00036267,7]
[385829914,1758057122664,-495.13188,0.00036288,30]
[385829915,1758057122673,-1100.0,0.00036299,7]
[385829916,1758057122683,-500.0,0.00036314,7]
[385829917,1758057122693,-600.0,0.00036315,7]
[385829918,1758057122702,-500.0,0.00036326,7]
[385829919,1758057122712,-700.0,0.00036334,7]
[385829920,1758057122722,-500.0,0.00036335,30]
[385829921,1758057122731,-500.0,0.00036335,7]
[385829922,1758057122741,-309.82,0.00036336,60]
[385829923,1758057122751,-965.28718445,0.00036336,7]
[385829924,1758057122760,-1100.0,0.0003634,7]
[385829925,1758057122770,-1521.0,0.00036343,20]
[385829926,1758057122780,-1100.0,0.00036344,7]
[385829927,1758057122790,-1300.0,0.00036347,7]
[385829928,1758057122799,-1000.0,0.00036354,7]
[385829929,1758057122809,-1100.0,0.00036354,7]
[385829930,1758057122819,-600.0,0.00036375,7]
[385829931,1758057122830,-662.76081266,0.0003639,7]
[385829932,1758057122841,-891.53846923,0.000364,10]
[385829933,1758057122851,-171.43950777,0.000364,15]
[385829934,1758057122861,-1679.52,0.000364,7]
[385829935,1758057122871,-1100.0,0.000364,7]
[385829936,1758057122881,-173.1,0.00036422,60]
[385829937,1758057122892,-153.9,0.00036422,60]
[385829938,1758057122905,-644.0,0.00036424,2]
[385829939,1758057122915,-309.82,0.00036436,60]
[385829940,1758057122926,-405.53,0.00036437,6]
[385829941,1758057122937,-595.63,0.00036437,6]
[385829942,1758057122950,-1028.77,0.00036437,6]
[385829943,1758057122962,-1409.64,0.00036437,6]
[385829944,1758057122971,-400.0,0.00036437,6]
[385829945,1758057122983,-600.72,0.00036437,6]
[385829946,1758057122994,-400.0,0.00036437,6]
[385829947,1758057123004,-400.0,0.00036437,6]
[385829948,1758057123014,-1436.86,0.00036437,6]
[385829949,1758057123023,-506.37,0.00036437,6]
[385829950,1758057123034,-7636.7,0.00036437,6]
[385829951,1758057123050,-1729.73,0.00036437,6]
[385829952,1758057123061,-524.19,0.00036437,6]
[385829953,1758057123079,-505.69,0.00036437,6]
[385829954,1758057123091,-844.72,0.00036437,6]
[385829955,1758057123101,-400.0,0.00036437,6]
[385829956,1758057123111,-546.33,0.00036437,6]
[385829957,1758057123122,-1051.06,0.00036437,6]
[385829958,1758057123131,-1470.36,0.00036437,6]
[385829959,1758057123141,-472.47597639,0.00036438,6]
[385829960,1758057123151,-595.25302859,0.00036438,6]
[385829961,1758057123161,-817.58034597,0.00036438,6]
[385829962,1758057123171,-426.90776555,0.00036438,6]
[385829963,1758057123181,-467.0233925,0.00036438,6]
[385829964,1758057123192,-436.50456378,0.00036438,6]
[385829965,1758057123203,-444.51446353,0.00036438,6]
[385829966,1758057123213,-538.68107342,0.00036438,6]
[385829967,1758057123223,-898.09599796,0.00036438,6]
[385829968,1758057123233,-400.41268016,0.00036438,6]
[385829969,1758057123433,-477.60228679,0.00036438,6]
[385829970,1758057123444,-420.85130856,0.00036438,6]
[385829971,1758057123454,-2152.75122428,0.00036438,6]
[385829972,1758057123464,-446.97898965,0.00036438,6]
[385829973,1758057123473,-414.4825805,0.00036438,6]
[385829974,1758057123483,-633.72688869,0.00036438,6]
[385829975,1758057123493,-488.52994272,0.00036438,6]
[385829976,1758057123503,-636.84131579,0.00036438,6]
[385829977,1758057123513,-605.81979607,0.00036438,6]
[385829978,1758057123523,-535.89216316,0.00036438,6]
[385829979,1758057123533,-609.8827,0.00036438,6]
[385829980,1758057123543,-713.44246871,0.00036438,6]
[385829981,1758057123553,-470.19352712,0.00036438,6]
[385829982,1758057123563,-546.04672057,0.00036438,6]
[385829983,1758057123572,-435.52630438,0.00036438,6]
[385829984,1758057123582,-1275.87103256,0.00036438,6]
[385829985,1758057123591,-1307.74467688,0.00036438,6]
[385829986,1758057123601,-585.35496289,0.00036438,6]
[385829987,1758057123611,-2094.18198878,0.00036438,6]
[385829988,1758057123620,-432.53853681,0.00036438,6]
[385829989,1758057123630,-807.22274622,0.00036438,6]
[385829990,1758057123640,-426.07582625,0.00036438,6]
[385829991,1758057123650,-450.99463395,0.00036438,6]
[385829992,1758057123660,-1320.7730664,0.00036438,6]
[385829993,1758057123669,-2034.10341712,0.00036438,6]
[385829994,1758057123678,-691.39393866,0.00036438,6]
[385829995,1758057123689,-632.25971334,0.00036438,6]
[385829996,1758057123700,-712.9318874,0.00036438,6]
[385829997,1758057123709,-532.17503283,0.00036438,6]
[385829998,1758057123719,-2182.95635027,0.00036438,6]
[385829999,1758057123728,-668.68159546,0.00036438,6]
[385830000,1758057123737,-682.72781276,0.00036438,6]
[385830001,1758057123747,-577.64266476,0.00036438,6]
[385830002,1758057123756,-613.29391662,0.00036438,6]
[385830003,1758057123766,-409.81,0.00036438,6]
[385830004,1758057123775,-1025.88266788,0.00036438,6]
[385830005,1758057123785,-1251.96320139,0.00036438,6]
[385830006,1758057123795,-925.08921343,0.00036438,6]
[385830007,1758057123804,-605.69239283,0.00036438,6]
[385830008,1758057123814,-593.86845152,0.00036438,6]
[385830009,1758057123824,-516.38255137,0.00036438,6]
[385830010,1758057123833,-1015.0545702,0.00036438,6]
[385830011,1758057123842,-524.74711714,0.00036438,6]
[385830012,1758057123852,-493.27464871,0.00036438,6]
[385830013,1758057123861,-413.04567815,0.00036438,6]
[385830014,1758057123870,-588.27758236,0.00036438,6]
[385830015,1758057123881,-529.8455897,0.00036438,6]
[385830016,1758057123890,-574.82852876,0.00036438,6]
[385830017,1758057123900,-983.856848,0.00036438,6]
[385830018,1758057123912,-436.74044124,0.00036438,6]
[385830019,1758057123921,-410.71544799,0.00036438,6]
[385830020,1758057123931,-409.50227366,0.00036438,6]
[385830021,1758057123942,-626.03146156,0.00036438,6]
[385830022,1758057123953,-875.64072309,0.00036438,6]
[385830023,1758057123963,-457.9733249,0.00036438,6]
[385830024,1758057123973,-791.44095619,0.00036438,6]
[385830025,1758057123986,-745.47792956,0.00036438,6]
[385830026,1758057123996,-609.57394749,0.00036438,6]
[385830027,1758057124006,-510.44294499,0.00036438,6]
[385830028,1758057124016,-556.48768417,0.00036438,6]
[385830029,1758057124026,-636.47,0.00036438,6]
[385830030,1758057124035,-438.37315658,0.00036438,6]
[385830031,1758057124045,-1260.35581497,0.00036438,6]
[385830032,1758057124055,-587.70799246,0.00036438,6]
[385830033,1758057124065,-479.64634313,0.00036438,6]
[385830034,1758057124075,-506.43761827,0.00036438,6]
[385830035,1758057124085,-461.77338675,0.00036438,6]
[385830036,1758057124095,-462.41578438,0.00036438,6]
[385830037,1758057124104,-1289.54210431,0.00036438,6]
[385830038,1758057124114,-691.07808801,0.00036438,6]
[385830039,1758057124123,-449.28,0.00036438,5]
[385830040,1758057124133,-1146.55048648,0.00036438,6]
[385830041,1758057124142,-497.78433183,0.00036438,6]
[385830042,1758057124151,-843.28609589,0.00036438,6]
[385830043,1758057124161,-366.8,0.00036438,6]
[385830044,1758057124171,-2611.57259117,0.00036438,6]
[385830045,1758057124180,-836.12948843,0.00036438,6]
[385830046,1758057124189,-468.03057028,0.00036438,6]
[385830047,1758057124198,-553.62092839,0.00036438,6]
[385830048,1758057124208,-430.6215325,0.00036438,6]
[385830049,1758057124217,-1289.42249763,0.00036438,6]
[385830050,1758057124227,-441.77281239,0.00036438,6]
[385830051,1758057124236,-479.72659491,0.00036438,6]
[385830052,1758057124245,-2216.49419782,0.00036438,6]
[385830053,1758057124255,-508.09707517,0.00036438,6]
[385830054,1758057124265,-547.59038457,0.00036438,6]
[385830055,1758057124275,-500.0,0.00036463,30]
[385830056,1758057124285,-8565.75555911,0.00036463,30]
[385830057,1758057124294,-250.0,0.00036463,30]
[385830058,1758057124303,-500.0,0.00036463,30]
[385830059,1758057124313,-248.71531821,0.00036463,30]
[385830060,1758057124322,-500.0,0.00036463,30]
[385830061,1758057124332,-1000.0,0.00036463,30]
[385830062,1758057124341,-151.0,0.00036463,30]
[385830063,1758057124351,-646.65982735,0.00036463,30]
[385830064,1758057124361,-151.0,0.00036463,30]
[385830065,1758057124370,-151.0,0.00036463,30]
[385830066,1758057124380,-151.0,0.00036463,30]
[385830067,1758057124389,-160.0,0.00036463,30]
[385830068,1758057124399,-1000.0,0.00036463,30]
[385830069,1758057124409,-500.0,0.00036463,30]
[385830070,1758057124419,-500.0,0.00036463,30]
[385830071,1758057124429,-500.0,0.00036463,30]
[385830072,1758057124439,-500.0,0.00036463,30]
[385830073,1758057124448,-151.0,0.00036463,30]
[385830074,1758057124458,-151.0,0.00036463,30]
[385830075,1758057124468,-495.13188,0.00036488,30]
[385830076,1758057124477,-500.0,0.00036496,7]
[385830077,1758057124486,-580.94433242,0.000365,120]
[385830078,1758057124496,-759.13,0.000365,7]
[385830079,1758057124505,-2965.66,0.000365,7]
[385830080,1758057124514,-150.0,0.00036504,120]
[385830081,1758057124524,-309.82,0.00036536,60]
[385830082,1758057124533,-1000.0,0.00036543,31]
[385830083,1758057124543,-500.0,0.00036546,7]
[385830084,1758057124552,-500.0,0.00036609,30]
[385830085,1758057124562,-600.0,0.00036622,7]
[385830086,1758057124571,-309.82,0.00036636,60]
[385830087,1758057124581,-4000.0,0.00036667,4]
[385830088,1758057124591,-500.0,0.00036672,30]
[385830089,1758057124601,-8260.13072239,0.00036672,30]
[385830090,1758057124611,-250.0,0.00036672,30]
[385830091,1758057124620,-239.84119403,0.00036672,30]
[385830092,1758057124629,-600.0,0.00036672,30]
[385830093,1758057124638,-500.0,0.00036672,30]
[385830094,1758057124648,-500.0,0.00036672,30]
[385830095,1758057124658,-1000.0,0.00036672,30]
[385830096,1758057124667,-151.0,0.00036672,30]
[385830097,1758057124676,-623.58710448,0.00036672,30]
[385830098,1758057124686,-151.0,0.00036672,30]
[385830099,1758057124696,-151.0,0.00036672,30]
[385830100,1758057124705,-151.0,0.00036672,30]
[385830101,1758057124714,-160.0,0.00036672,30]
[385830102,1758057124723,-1000.0,0.00036672,30]
[385830103,1758057124732,-500.0,0.00036672,30]
[385830104,1758057124742,-500.0,0.00036672,30]
[385830105,1758057124750,-500.0,0.00036672,30]
[385830106,1758057124760,-500.0,0.00036672,30]
[385830107,1758057124769,-151.0,0.00036672,30]